[Event "EYTCC U18 Girls 2019"]
[Site "Pardubice"]
[Date "2019.07.15"]
[Round "5.31"]
[White "Sahin, Hayrun Nisa"]
[Black "Sliwicka, Alicja"]
[Result "0-1"]
[ECO "B56"]
[WhiteElo "1772"]
[BlackElo "2261"]
[Annotator "NA"]
[PlyCount "110"]
[EventDate "2019.07.11"]
[EventType "swiss"]
[EventCountry "CZE"]
[SourceTitle "playchess.com"]
[Source "ChessBase"]
[SourceQuality "1"]
[WhiteTeam "Turkey"]
[BlackTeam "Poland"]
[WhiteTeamCountry "TUR"]
[BlackTeamCountry "POL"]
[TimeControl "40/5400+30:1800+30"]

1. e4 {[%emt 0:00:09]} c5 {[%emt 0:00:00]} 2. Nf3 {[%emt 0:00:06]} d6 {[%emt 0:00:00]} 3. d4 {[%emt 0:00:04]} cxd4 {[%emt 0:00:00]} 4. Nxd4 {[%emt 0:00:07]} Nf6 {[%emt 0:00:02]} 5. Nc3 {[%emt 0:00:08]} Bd7 {[%emt 0:00:08]} 6. f3 {[%emt 0:01:27]} e5 {[%emt 0:00:09]} 7. Nb3 {[%emt 0:00:14]} Be7 {[%emt 0:00:10]} 8. Be3 {[%emt 0:00:05]} O-O {[%emt 0:00:09]} 9. Qd2 {[%emt 0:02:01]} a5 {[%emt 0:00:07]} 10. a4 {[%emt 0:05:10]} Na6 {[%emt 0:00:34]} 11. Bb5 {[%emt 0:01:45]} Be6 {[%emt 0:00:11]} 12. Nd5 {[%emt 0:02:45]} Bxd5 {[%emt 0:00:17]} 13. exd5 {[%emt 0:00:09]} Nb4 {[%emt 0:00:18]} 14. c4 {[%emt 0:02:36]} b6 {[%emt 0:00:11]} 15. Nc1 {[%emt 0:02:24]} Nh5 {[%emt 0:06:02]} 16. g4 {[%emt 0:15:09]} Bh4+ {[%emt 0:05:52]} 17. Kd1 {[%emt 0:05:50]} Nf4 {[%emt 0:05:16]} 18. Bxf4 {[%emt 0:14:08]} exf4 {[%emt 0:00:15]} 19. Na2 {[%emt 0:10:00]} Nxa2 {[%emt 0:01:56]} 20. Rxa2 {[%emt 0:01:48]} Qf6 {[%emt 0:02:59]} 21. Qc3 {[%emt 0:16:44]} Qe7 {[%emt 0:12:11]} 22. b3 {[%emt 0:03:52]} f5 {[%emt 0:13:58]} 23. Re2 {[%emt 0:01:47]} Qf7 {[%emt 0:00:46]} 24. Rg1 {[%emt 0:03:31]} Ra7 {[%emt 0:01:04]} 25. h3 {[%emt 0:02:22]} Re7 {[%emt 0:06:52]} 26. Rgg2 {[%emt 0:00:26]} Bf6 {[%emt 0:02:30]} 27. Qd3 {[%emt 0:02:52]} Be5 {[%emt 0:03:27]} 28. Qxf5 {[%emt 0:04:12]} Qxf5 {[%emt 0:00:29]} 29. gxf5 {[%emt 0:00:04]} Rxf5 {[%emt 0:00:20]} 30. Ba6 {[%emt 0:00:31]} Rc7 {[%emt 0:02:11]} 31. Bb5 {[%emt 0:00:57]} Kf7 {[%emt 0:00:48]} 32. Kd2 {[%emt 0:01:13]} Rh5 {[%emt 0:02:42]} 33. Rh2 {[%emt 0:00:27]} Ke7 {[%emt 0:03:27]} 34. Re1 {[%emt 0:01:03]} Kd8 {[%emt 0:00:27]} 35. Reh1 {[%emt 0:00:43]} Re7 {[%emt 0:01:33]} 36. Re2 {[%emt 0:00:39]} Rg5 {[%emt 0:01:17]} 37. Rhh2 {[%emt 0:00:23]} Rg3 {[%emt 0:01:26]} 38. Ref2 {[%emt 0:00:35]} Bd4 {[%emt 0:01:15]} 39. Rf1 {[%emt 0:00:01]} Re3 {[%emt 0:01:42]} 40. Re2 {[%emt 0:00:12]} Rxh3 {[%emt 0:01:55]} 41. Rxe3 {[%emt 0:30:58]} Bxe3+ {[%emt 0:37:09]} 42. Kd3 {[%emt 0:00:00]} Rh2 {[%emt 0:00:00]} 43. Ke4 {[%emt 0:00:00]} g6 {[%emt 0:00:00]} 44. Kd3 {[%emt 0:00:00]} h5 {[%emt 0:00:00]} 45. Rb1 {[%emt 0:00:00]} h4 {[%emt 0:00:00]} 46. b4 {[%emt 0:00:00]} axb4 {[%emt 0:00:00]} 47. Rxb4 {[%emt 0:00:00]} Rd2+ {[%emt 0:00:00]} 48. Kc3 {[%emt 0:00:00]} Rd1 {[%emt 0:00:00]} 49. c5 {[%emt 0:00:00]} Bd2+ {[%emt 0:00:00]} 50. Kc2 {[%emt 0:00:00]} Bxb4 {[%emt 0:00:00]} 51. Kxd1 {[%emt 0:00:00]} h3 {[%emt 0:00:00]} 52. Bf1 {[%emt 0:00:00]} h2 {[%emt 0:00:00]} 53. Bg2 {[%emt 0:00:00]} dxc5 {[%emt 0:00:00]} 54. Ke2 {[%emt 0:00:00]} c4 {[%emt 0:00:00]} 55. Kf2 {[%emt 0:00:00]} Kc7 {[%emt 0:00:00]} 0-1

[Event "EYTCC U18 Girls 2019"]
[Site "Pardubice"]
[Date "2019.07.15"]
[Round "5.32"]
[White "Sowa, Wiktoria"]
[Black "Aydin, Gulenay"]
[Result "1-0"]
[ECO "B54"]
[WhiteElo "2108"]
[BlackElo "1934"]
[Annotator "ChessBase"]
[PlyCount "75"]
[EventDate "2019.07.11"]
[EventType "swiss"]
[EventCountry "CZE"]
[SourceTitle "playchess.com"]
[Source "ChessBase"]
[SourceQuality "1"]
[WhiteTeam "Poland"]
[BlackTeam "Turkey"]
[WhiteTeamCountry "POL"]
[BlackTeamCountry "TUR"]
[TimeControl "40/5400+30:1800+30"]

1. e4 {[%emt 0:00:00]} c5 {[%emt 0:00:00]} 2. Nf3 {[%emt 0:00:00]} d6 {[%emt 0:00:00]} 3. d4 {[%emt 0:00:00]} cxd4 {[%emt 0:00:00]} 4. Nxd4 {[%emt 0:00:00]} Nf6 {[%emt 0:00:00]} 5. f3 {[%emt 0:00:19]} g6 {[%emt 0:00:03]} 6. c4 {[%emt 0:00:21]} Bg7 {[%emt 0:00:49]} 7. Nc3 {[%emt 0:00:50]} O-O {[%emt 0:00:46]} 8. Be3 {[%emt 0:01:22]} Nc6 {[%emt 0:00:56]} 9. Qd2 {[%emt 0:00:56]} Bd7 {[%emt 0:08:03]} 10. Be2 {[%emt 0:00:36]} Qa5 {[%emt 0:07:39]} 11. Nc2 {[%emt 0:02:11]} Rfc8 {[%emt 0:04:24]} 12. O-O {[%emt 0:02:26]} a6 {[%emt 0:02:24]} 13. Rac1 {[%emt 0:10:18]} Rab8 {[%emt 0:13:10]} 14. a3 {[%emt 0:10:57]} Be6 {[%emt 0:08:51]} 15. b4 {[%emt 0:03:07]} Qd8 {[%emt 0:04:05]} 16. Nd5 {[%emt 0:01:35]} b5 {[%emt 0:09:44]} 17. Nd4 {[%emt 0:11:18]} Nxd4 {[%emt 0:15:42]} 18. Bxd4 {[%emt 0:04:15]} Nxd5 {[%emt 0:03:03]} 19. exd5 {[%emt 0:01:52]} Bxd4+ {[%emt 0:05:50]} 20. Qxd4 {[%emt 0:00:06]} Bf5 {[%emt 0:03:28]} 21. c5 {[%emt 0:02:54]} Rc7 {[%emt 0:05:32]} 22. a4 {[%emt 0:02:14]} e5 {[%emt 0:04:09]} 23. dxe6 {[%emt 0:03:34]} dxc5 {[%emt 0:01:10]} 24. exf7+ {[%emt 0:01:07]} Kxf7 {[%emt 0:00:01]} 25. Qf4 {[%emt 0:04:22]} Re7 {[%emt 0:01:18]} 26. Rfd1 {[%emt 0:02:24]} Qc7 {[%emt 0:00:56]} 27. Qh4 {[%emt 0:04:31]} Kg8 {[%emt 0:00:40]} 28. Rxc5 {[%emt 0:01:58]} Qa7 {[%emt 0:00:32]} 29. Bf1 {[%emt 0:01:17]} bxa4 {[%emt 0:00:35]} 30. Bc4+ {[%emt 0:00:47]} Be6 {[%emt 0:00:28]} 31. Kh1 {[%emt 0:03:34]} Rbe8 {[%emt 0:00:35]} 32. Rc6 {[%emt 0:06:55]} Qe3 {[%emt 0:00:30]} 33. Rxe6 {[%emt 0:03:15]} Rxe6 {[%emt 0:00:14]} 34. Re1 {[%emt 0:01:05]} Qb6 {[%emt 0:00:46]} 35. Qf6 {[%emt 0:00:36]} Qxb4 {[%emt 0:00:30]} 36. Bxe6+ {[%emt 0:00:19]} Rxe6 {[%emt 0:00:16]} 37. Qxe6+ {[%emt 0:00:04]} Kg7 {[%emt 0:00:25]} 38. Qe7+ {[%emt 0:00:26]} 1-0

[Event "EYTCC U18 Girls 2019"]
[Site "Pardubice"]
[Date "2019.07.15"]
[Round "5.33"]
[White "Radeva, Viktoria"]
[Black "Kucharska, Honorata"]
[Result "0-1"]
[ECO "C50"]
[WhiteElo "2247"]
[BlackElo "2054"]
[Annotator "ChessBase"]
[PlyCount "154"]
[EventDate "2019.07.11"]
[EventType "swiss"]
[EventCountry "CZE"]
[SourceTitle "playchess.com"]
[Source "ChessBase"]
[SourceQuality "1"]
[WhiteTeam "Bulgaria"]
[BlackTeam "Poland"]
[WhiteTeamCountry "BUL"]
[BlackTeamCountry "POL"]
[TimeControl "40/5400+30:1800+30"]

1. e4 {[%emt 0:00:00]} e5 {[%emt 0:00:00]} 2. Nf3 {[%emt 0:00:00]} Nc6 {[%emt 0:00:00]} 3. Bc4 {[%emt 0:00:47]} Nf6 {[%emt 0:00:00]} 4. d3 {[%emt 0:01:10]} Bc5 {[%emt 0:00:28]} 5. c3 {[%emt 0:00:37]} a6 {[%emt 0:00:23]} 6. a4 {[%emt 0:00:35]} Ba7 {[%emt 0:01:25]} 7. O-O {[%emt 0:00:30]} d6 {[%emt 0:00:41]} 8. Nbd2 {[%emt 0:00:54]} O-O {[%emt 0:02:58]} 9. h3 {[%emt 0:00:45]} Ne7 {[%emt 0:01:16]} 10. Re1 {[%emt 0:00:31]} Ng6 {[%emt 0:00:53]} 11. Nf1 {[%emt 0:00:19]} c6 {[%emt 0:03:41]} 12. Ba2 {[%emt 0:09:00]} Be6 {[%emt 0:05:56]} 13. Bxe6 {[%emt 0:09:14]} fxe6 {[%emt 0:01:25]} 14. Qb3 {[%emt 0:02:27]} Qe7 {[%emt 0:02:44]} 15. Ng3 {[%emt 0:05:41]} Kh8 {[%emt 0:05:12]} 16. Be3 {[%emt 0:07:13]} Nf4 {[%emt 0:11:35]} 17. d4 {[%emt 0:14:05]} Ng8 {[%emt 0:09:45]} 18. Nh2 {[%emt 0:10:09]} Nh6 {[%emt 0:04:58]} 19. Rad1 {[%emt 0:05:10]} Qf7 {[%emt 0:09:34]} 20. Qc2 {[%emt 0:04:17]} b5 {[%emt 0:06:48]} 21. dxe5 {[%emt 0:03:42]} dxe5 {[%emt 0:00:44]} 22. Bxa7 {[%emt 0:03:08]} Qxa7 {[%emt 0:05:24]} 23. Rd6 {[%emt 0:04:28]} Nf7 {[%emt 0:07:07]} 24. Rd2 {[%emt 0:05:36]} bxa4 {[%emt 0:02:06]} 25. Qxa4 {[%emt 0:01:31]} Qb6 {[%emt 0:01:45]} 26. Nf3 {[%emt 0:01:25]} Qc5 {[%emt 0:04:18]} 27. Red1 {[%emt 0:02:50]} Nh6 {[%emt 0:01:17]} 28. Kh2 {[%emt 0:01:38]} Ng8 {[%emt 0:02:51]} 29. Qa3 {[%emt 0:01:35]} Qb5 {[%emt 0:01:19]} 30. Qd6 {[%emt 0:01:01]} Ng6 {[%emt 0:03:20]} 31. Qxe6 {[%emt 0:00:49]} Rae8 {[%emt 0:00:56]} 32. Qd6 {[%emt 0:01:14]} Nh6 {[%emt 0:02:39]} 33. Qc7 {[%emt 0:02:57]} Qc4 {[%emt 0:01:43]} 34. Rd7 {[%emt 0:00:32]} Rg8 {[%emt 0:00:31]} 35. Nh5 {[%emt 0:01:01]} Qxe4 {[%emt 0:00:40]} 36. Rxg7 {[%emt 0:00:11]} Nf4 {[%emt 0:00:44]} 37. Rdd7 {[%emt 0:00:50]} Rxg7 {[%emt 0:00:32]} 38. Nxg7 {[%emt 0:00:03]} Rg8 {[%emt 0:00:20]} 39. Qa7 {[%emt 0:00:58]} Nxg2 {[%emt 0:00:49]} 40. Nh5 {[%emt 0:00:32]} Nf4 {[%emt 0:00:17]} 41. Ng3 {[%emt 0:30:24]} Rxg3 {[%emt 0:02:00]} 42. Rd8+ {[%emt 0:00:00]} Rg8 {[%emt 0:00:29]} 43. Qe7 {[%emt 0:00:00]} Nd5 {[%emt 0:03:26]} 44. Rxg8+ {[%emt 0:00:00]} Nxg8 {[%emt 0:00:20]} 45. Qxe5+ {[%emt 0:00:00]} Qxe5+ {[%emt 0:00:10]} 46. Nxe5 {[%emt 0:00:00]} Nge7 {[%emt 0:00:16]} 47. Nd7 {[%emt 0:00:00]} Kg7 {[%emt 0:01:10]} 48. Nc5 {[%emt 0:00:00]} Nc7 {[%emt 0:02:33]} 49. Kg3 {[%emt 0:00:00]} Kf6 {[%emt 0:00:48]} 50. Kg4 {[%emt 0:00:00]} Ng6 {[%emt 0:12:32]} 51. f4 {[%emt 0:00:00]} h5+ {[%emt 0:04:31]} 52. Kxh5 {[%emt 0:00:00]} Kf5 {[%emt 0:00:52]} 53. Nd7 {[%emt 0:00:00]} Nxf4+ {[%emt 0:00:59]} 54. Kh6 {[%emt 0:00:00]} Ke6 {[%emt 0:01:42]} 55. Nb8 {[%emt 0:00:00]} Kd6 {[%emt 0:00:53]} 56. h4 {[%emt 0:00:00]} a5 {[%emt 0:00:11]} 57. Kg5 {[%emt 0:00:00]} Nce6+ {[%emt 0:00:47]} 58. Kf5 {[%emt 0:00:48]} a4 {[%emt 0:00:43]} 59. Na6 {[%emt 0:01:33]} Nd3 {[%emt 0:01:12]} 60. h5 {[%emt 0:00:16]} Ng7+ {[%emt 0:00:54]} 61. Ke4 {[%emt 0:01:41]} Nxb2 {[%emt 0:00:15]} 62. h6 {[%emt 0:00:12]} Ne6 {[%emt 0:00:44]} 63. Kf5 {[%emt 0:06:00]} Nf8 {[%emt 0:00:17]} 64. Nb4 {[%emt 0:00:45]} c5 {[%emt 0:00:46]} 65. Na2 {[%emt 0:00:07]} Nc4 {[%emt 0:00:23]} 66. Kf6 {[%emt 0:00:28]} Ne5 {[%emt 0:00:08]} 67. Kg7 {[%emt 0:01:00]} Ned7 {[%emt 0:00:23]} 68. c4 {[%emt 0:00:45]} Ke5 {[%emt 0:00:16]} 69. Nc3 {[%emt 0:00:19]} a3 {[%emt 0:00:06]} 70. Kf7 {[%emt 0:00:31]} Nh7 {[%emt 0:00:45]} 71. Ke7 {[%emt 0:00:32]} Nb6 {[%emt 0:00:07]} 72. Kd8 {[%emt 0:00:38]} Na4 {[%emt 0:02:25]} 73. Na2 {[%emt 0:00:20]} Kd4 {[%emt 0:00:51]} 74. Ke7 {[%emt 0:00:04]} Nb6 {[%emt 0:00:02]} 75. Nc1 {[%emt 0:01:06]} Kxc4 {[%emt 0:00:12]} 76. Kf7 {[%emt 0:00:24]} Nd7 {[%emt 0:00:04]} 77. Kg7 {[%emt 0:00:04]} Ndf6 {[%emt 0:00:17]} 0-1

[Event "EYTCC U18 Girls 2019"]
[Site "Pardubice"]
[Date "2019.07.15"]
[Round "5.34"]
[White "Malicka, Maria"]
[Black "Krasteva, Beloslava"]
[Result "0-1"]
[ECO "B94"]
[WhiteElo "2115"]
[BlackElo "2327"]
[Annotator "NA"]
[PlyCount "120"]
[EventDate "2019.07.11"]
[EventType "swiss"]
[EventCountry "CZE"]
[SourceTitle "playchess.com"]
[Source "ChessBase"]
[SourceQuality "1"]
[WhiteTeam "Poland"]
[BlackTeam "Bulgaria"]
[WhiteTeamCountry "POL"]
[BlackTeamCountry "BUL"]
[TimeControl "40/5400+30:1800+30"]

1. e4 {[%emt 0:00:00]} c5 {[%emt 0:00:00]} 2. Nf3 {[%emt 0:00:00]} d6 {[%emt 0:00:03]} 3. d4 {[%emt 0:00:00]} cxd4 {[%emt 0:00:12]} 4. Nxd4 {[%emt 0:00:00]} Nf6 {[%emt 0:00:17]} 5. Nc3 {[%emt 0:00:00]} a6 {[%emt 0:00:09]} 6. Bg5 {[%emt 0:00:00]} Nbd7 {[%emt 0:00:56]} 7. a4 {[%emt 0:00:01]} e6 {[%emt 0:07:35]} 8. a5 {[%emt 0:00:16]} Qc7 {[%emt 0:03:14]} 9. Be2 {[%emt 0:01:05]} Be7 {[%emt 0:01:14]} 10. Nb3 {[%emt 0:00:18]} b5 {[%emt 0:05:35]} 11. axb6 {[%emt 0:00:24]} Nxb6 {[%emt 0:00:18]} 12. O-O {[%emt 0:04:01]} O-O {[%emt 0:00:52]} 13. Qd3 {[%emt 0:05:00]} Rd8 {[%emt 0:07:54]} 14. Qg3 {[%emt 0:05:05]} Bb7 {[%emt 0:07:59]} 15. Bh6 {[%emt 0:06:21]} g6 {[%emt 0:03:12]} 16. Bd3 {[%emt 0:16:36]} Nc4 {[%emt 0:03:43]} 17. Bxc4 {[%emt 0:01:07]} Qxc4 {[%emt 0:00:07]} 18. Ra4 {[%emt 0:00:17]} Qc7 {[%emt 0:02:11]} 19. Rfa1 {[%emt 0:07:45]} Bc6 {[%emt 0:08:57]} 20. Rc4 {[%emt 0:11:51]} Qd7 {[%emt 0:03:22]} 21. Rd1 {[%emt 0:05:29]} Bb5 {[%emt 0:06:13]} 22. Rcd4 {[%emt 0:02:11]} e5 {[%emt 0:01:25]} 23. R4d2 {[%emt 0:00:18]} Bc6 {[%emt 0:06:05]} 24. f3 {[%emt 0:00:41]} a5 {[%emt 0:05:54]} 25. Rd3 {[%emt 0:03:18]} Nh5 {[%emt 0:06:13]} 26. Qf2 {[%emt 0:03:01]} a4 {[%emt 0:01:58]} 27. Nd2 {[%emt 0:02:16]} g5 {[%emt 0:00:35]} 28. h4 {[%emt 0:04:11]} gxh4 {[%emt 0:01:52]} 29. Qe3 {[%emt 0:07:19]} Kh8 {[%emt 0:01:32]} 30. Nc4 {[%emt 0:01:22]} Qe6 {[%emt 0:01:33]} 31. Nd5 {[%emt 0:02:48]} Bxd5 {[%emt 0:01:11]} 32. Rxd5 {[%emt 0:00:10]} Nf6 {[%emt 0:02:36]} 33. Nb6 {[%emt 0:02:11]} Nxd5 {[%emt 0:00:26]} 34. exd5 {[%emt 0:00:39]} Qg6 {[%emt 0:00:23]} 35. Nxa8 {[%emt 0:00:13]} Rxa8 {[%emt 0:00:08]} 36. Qd2 {[%emt 0:02:37]} Rg8 {[%emt 0:01:34]} 37. Ra1 {[%emt 0:01:09]} f5 {[%emt 0:01:55]} 38. Rxa4 {[%emt 0:02:28]} f4 {[%emt 0:01:28]} 39. Bxf4 {[%emt 0:00:18]} exf4 {[%emt 0:00:11]} 40. Rxf4 {[%emt 0:00:09]} h5 {[%emt 0:01:31]} 41. Re4 {[%emt 0:35:56]} Bf6 {[%emt 0:31:43]} 42. b4 {[%emt 0:00:00]} Be5 {[%emt 0:00:00]} 43. Rxh4 {[%emt 0:00:00]} Bg3 {[%emt 0:00:00]} 44. Re4 {[%emt 0:00:00]} Ra8 {[%emt 0:00:00]} 45. Qd4+ {[%emt 0:00:00]} Be5 {[%emt 0:00:00]} 46. Rxe5 {[%emt 0:00:00]} dxe5 {[%emt 0:00:00]} 47. Qxe5+ {[%emt 0:00:00]} Kg8 {[%emt 0:00:00]} 48. c4 {[%emt 0:00:00]} Re8 {[%emt 0:00:00]} 49. Qf4 {[%emt 0:00:00]} Re2 {[%emt 0:00:00]} 50. Qb8+ {[%emt 0:00:00]} Kh7 {[%emt 0:00:00]} 51. Qc7+ {[%emt 0:00:51]} Qg7 {[%emt 0:00:00]} 52. d6 {[%emt 0:01:16]} Kh6 {[%emt 0:00:00]} 53. Qxg7+ {[%emt 0:00:07]} Kxg7 {[%emt 0:00:00]} 54. Kf1 {[%emt 0:02:14]} Rb2 {[%emt 0:00:00]} 55. d7 {[%emt 0:01:57]} Rd2 {[%emt 0:00:00]} 56. c5 {[%emt 0:00:10]} Rxd7 {[%emt 0:01:08]} 57. Ke2 {[%emt 0:00:36]} Rb7 {[%emt 0:01:31]} 58. Kd3 {[%emt 0:00:47]} Rxb4 {[%emt 0:00:11]} 59. Kc3 {[%emt 0:00:07]} Rf4 {[%emt 0:00:23]} 60. Kd3 {[%emt 0:00:46]} Kf8 {[%emt 0:00:31]} 0-1

[Event "EYTCC U18 Girls 2019"]
[Site "Pardubice"]
[Date "2019.07.15"]
[Round "5.35"]
[White "Urh, Zala"]
[Black "Stroganova, Karina"]
[Result "1-0"]
[ECO "B01"]
[WhiteElo "2072"]
[BlackElo "1875"]
[Annotator "NA"]
[PlyCount "89"]
[EventDate "2019.07.11"]
[EventType "swiss"]
[EventCountry "CZE"]
[SourceTitle "playchess.com"]
[Source "ChessBase"]
[SourceQuality "1"]
[WhiteTeam "Slovenia"]
[BlackTeam "Russia"]
[WhiteTeamCountry "SLO"]
[BlackTeamCountry "RUS"]
[TimeControl "40/5400+30:1800+30"]

1. e4 {[%emt 0:00:00]} d5 {[%emt 0:00:00]} 2. exd5 {[%emt 0:00:00]} Qxd5 {[%emt 0:00:00]} 3. Nc3 {[%emt 0:00:00]} Qd8 {[%emt 0:00:00]} 4. d4 {[%emt 0:00:39]} Nf6 {[%emt 0:00:12]} 5. Nf3 {[%emt 0:00:49]} g6 {[%emt 0:00:11]} 6. h3 {[%emt 0:01:17]} Bg7 {[%emt 0:00:06]} 7. Bc4 {[%emt 0:00:57]} O-O {[%emt 0:00:27]} 8. O-O {[%emt 0:00:25]} a6 {[%emt 0:00:28]} 9. a4 {[%emt 0:01:04]} b6 {[%emt 0:00:41]} 10. Re1 {[%emt 0:01:52]} Bb7 {[%emt 0:00:56]} 11. Ne5 {[%emt 0:02:27]} Nc6 {[%emt 0:03:34]} 12. Nxc6 {[%emt 0:05:19]} Bxc6 {[%emt 0:00:06]} 13. d5 {[%emt 0:03:03]} Bb7 {[%emt 0:00:26]} 14. Bf4 {[%emt 0:00:51]} Qd7 {[%emt 0:03:32]} 15. Qd3 {[%emt 0:02:10]} c6 {[%emt 0:01:28]} 16. dxc6 {[%emt 0:06:21]} Qxc6 {[%emt 0:02:48]} 17. Qf1 {[%emt 0:00:13]} e6 {[%emt 0:07:34]} 18. Rad1 {[%emt 0:03:05]} Rfc8 {[%emt 0:13:34]} 19. Bb3 {[%emt 0:09:43]} Rd8 {[%emt 0:06:07]} 20. Na2 {[%emt 0:14:18]} Nh5 {[%emt 0:15:57]} 21. Be3 {[%emt 0:07:47]} a5 {[%emt 0:08:27]} 22. Rxd8+ {[%emt 0:02:04]} Rxd8 {[%emt 0:00:12]} 23. c3 {[%emt 0:00:08]} Be5 {[%emt 0:14:53]} 24. Bd1 {[%emt 0:08:15]} Nf4 {[%emt 0:04:29]} 25. Bxf4 {[%emt 0:00:10]} Bxf4 {[%emt 0:00:22]} 26. Bf3 {[%emt 0:00:15]} Qxa4 {[%emt 0:05:06]} 27. Bxb7 {[%emt 0:00:08]} Qxa2 {[%emt 0:00:06]} 28. g3 {[%emt 0:00:28]} Bg5 {[%emt 0:01:02]} 29. Qb5 {[%emt 0:01:12]} Be7 {[%emt 0:01:51]} 30. Qxb6 {[%emt 0:01:25]} Rd2 {[%emt 0:00:58]} 31. b3 {[%emt 0:15:28]} Bf6 {[%emt 0:04:04]} 32. Qe3 {[%emt 0:02:10]} Rc2 {[%emt 0:01:14]} 33. c4 {[%emt 0:00:38]} Qb2 {[%emt 0:01:22]} 34. Rd1 {[%emt 0:03:56]} Rc3 {[%emt 0:00:28]} 35. Qf4 {[%emt 0:01:59]} Rxb3 {[%emt 0:01:44]} 36. Bc6 {[%emt 0:00:17]} Kg7 {[%emt 0:00:41]} 37. Rd7 {[%emt 0:01:05]} Ra3 {[%emt 0:01:29]} 38. Qc7 {[%emt 0:01:01]} Ra1+ {[%emt 0:01:19]} 39. Kg2 {[%emt 0:00:07]} Be5 {[%emt 0:00:54]} 40. Rxf7+ {[%emt 0:00:22]} Kh6 {[%emt 0:00:25]} 41. Rxh7+ {[%emt 0:30:59]} Kg5 {[%emt 0:30:08]} 42. h4+ {[%emt 0:00:55]} Kg4 {[%emt 0:00:00]} 43. Bf3+ {[%emt 0:00:00]} Kf5 {[%emt 0:00:00]} 44. Rf7+ {[%emt 0:00:00]} Bf6 {[%emt 0:00:00]} 45. Qf4# {[%emt 0:00:00]} 1-0

[Event "EYTCC U18 Girls 2019"]
[Site "Pardubice"]
[Date "2019.07.15"]
[Round "5.36"]
[White "Beliakova, Ilona"]
[Black "Hercog, Nusa"]
[Result "1-0"]
[ECO "D30"]
[WhiteElo "1759"]
[BlackElo "2053"]
[Annotator "NA"]
[PlyCount "103"]
[EventDate "2019.07.11"]
[EventType "swiss"]
[EventCountry "CZE"]
[SourceTitle "playchess.com"]
[Source "ChessBase"]
[SourceQuality "1"]
[WhiteTeam "Russia"]
[BlackTeam "Slovenia"]
[WhiteTeamCountry "RUS"]
[BlackTeamCountry "SLO"]
[TimeControl "40/5400+30:1800+30"]

1. d4 {[%emt 0:00:00]} d5 {[%emt 0:00:00]} 2. c4 {[%emt 0:00:00]} e6 {[%emt 0:00:00]} 3. Nf3 {[%emt 0:00:28]} Nf6 {[%emt 0:00:04]} 4. g3 {[%emt 0:00:52]} dxc4 {[%emt 0:00:18]} 5. Qa4+ {[%emt 0:02:11]} Nbd7 {[%emt 0:00:23]} 6. Bg2 {[%emt 0:02:08]} a6 {[%emt 0:00:46]} 7. Qxc4 {[%emt 0:00:14]} b5 {[%emt 0:00:22]} 8. Qc6 {[%emt 0:07:24]} Rb8 {[%emt 0:07:03]} 9. Bf4 {[%emt 0:01:06]} Nd5 {[%emt 0:00:28]} 10. Bg5 {[%emt 0:01:33]} Be7 {[%emt 0:03:58]} 11. Bxe7 {[%emt 0:02:03]} Qxe7 {[%emt 0:19:37]} 12. O-O {[%emt 0:03:16]} Bb7 {[%emt 0:00:47]} 13. Qc2 {[%emt 0:00:20]} c5 {[%emt 0:04:42]} 14. dxc5 {[%emt 0:02:30]} Nxc5 {[%emt 0:03:35]} 15. a3 {[%emt 0:00:32]} Rc8 {[%emt 0:02:26]} 16. Nc3 {[%emt 0:06:28]} O-O {[%emt 0:06:00]} 17. Nxd5 {[%emt 0:02:45]} Bxd5 {[%emt 0:00:16]} 18. Rac1 {[%emt 0:03:03]} Bb3 {[%emt 0:09:52]} 19. Qc3 {[%emt 0:09:33]} Bc4 {[%emt 0:01:29]} 20. Ne5 {[%emt 0:17:47]} Na4 {[%emt 0:14:35]} 21. Qc2 {[%emt 0:05:58]} Nb6 {[%emt 0:00:34]} 22. Rfd1 {[%emt 0:05:48]} h6 {[%emt 0:05:13]} 23. Nc6 {[%emt 0:03:15]} Qf6 {[%emt 0:06:45]} 24. b3 {[%emt 0:01:33]} Bd5 {[%emt 0:00:11]} 25. Bxd5 {[%emt 0:01:47]} Nxd5 {[%emt 0:05:08]} 26. e4 {[%emt 0:03:45]} Ne7 {[%emt 0:07:47]} 27. e5 {[%emt 0:00:54]} Qg5 {[%emt 0:00:06]} 28. h4 {[%emt 0:03:06]} Rxc6 {[%emt 0:00:49]} 29. hxg5 {[%emt 0:01:53]} Rxc2 {[%emt 0:00:05]} 30. Rxc2 {[%emt 0:00:05]} Nd5 {[%emt 0:00:45]} 31. gxh6 {[%emt 0:00:12]} gxh6 {[%emt 0:00:01]} 32. Rc6 {[%emt 0:01:20]} Ra8 {[%emt 0:00:05]} 33. f4 {[%emt 0:00:44]} a5 {[%emt 0:01:13]} 34. Kf2 {[%emt 0:00:20]} b4 {[%emt 0:00:04]} 35. a4 {[%emt 0:03:07]} Kg7 {[%emt 0:00:35]} 36. Kf3 {[%emt 0:00:53]} Ne7 {[%emt 0:01:21]} 37. Rc5 {[%emt 0:00:30]} Nd5 {[%emt 0:00:08]} 38. Rd4 {[%emt 0:01:45]} h5 {[%emt 0:00:27]} 39. f5 {[%emt 0:03:16]} Ra6 {[%emt 0:00:54]} 40. f6+ {[%emt 0:01:17]} Kg6 {[%emt 0:00:17]} 41. Rc8 {[%emt 0:30:47]} Kf5 {[%emt 0:02:47]} 42. Re4 {[%emt 0:00:00]} Nc3 {[%emt 0:01:10]} 43. Re1 {[%emt 0:00:00]} Ra7 {[%emt 0:00:58]} 44. Rh8 {[%emt 0:00:00]} Rd7 {[%emt 0:02:08]} 45. Rxh5+ {[%emt 0:00:00]} Kg6 {[%emt 0:00:02]} 46. Rh4 {[%emt 0:00:00]} Rd3+ {[%emt 0:02:06]} 47. Re3 {[%emt 0:00:00]} Rd2 {[%emt 0:04:53]} 48. Rg4+ {[%emt 0:00:00]} Kh5 {[%emt 0:02:32]} 49. Rg7 {[%emt 0:00:00]} Nd1 {[%emt 0:02:26]} 50. Re1 {[%emt 0:00:00]} Rf2+ {[%emt 0:00:12]} 51. Ke4 {[%emt 0:00:00]} Nc3+ {[%emt 0:00:15]} 52. Ke3 {[%emt 0:00:00]} 1-0